[Event "Titled Tuesday Blitz November 15 Early 2022"]
[White "Pg, Mohd Omar Ak Hira"]
[Black "Tomb, Maroun"]
[WhiteFideId "10500103"]
[BlackFideId "5300398"]
[WhiteElo "2184"]
[BlackElo "2541"]
[Result "0-1"]
[Round "05"]
[TimeControl "180+1"]
[Date "2022.11.16"]
[WhiteClock "0:00:03"]
[BlackClock "0:01:01"]

1. e4 {[%clk 0:02:55]}  c5 {[%clk 0:02:53]} 2. Nf3 {[%clk 0:02:51]}  Nc6 {[%clk 0:02:53]} 3. d4 {[%clk 0:02:50]}  cxd4 {[%clk 0:02:53]} 4. Nxd4 {[%clk 0:02:50]}  e5 {[%clk 0:02:54]} 5. Nb3 {[%clk 0:02:47]}  f5 {[%clk 0:02:52]} 6. exf5 {[%clk 0:02:32]}  Nf6 {[%clk 0:02:52]} 7. Bg5 {[%clk 0:02:22]}  d5 {[%clk 0:02:34]} 8. Bb5 {[%clk 0:02:03]}  Bxf5 {[%clk 0:02:29]} 9. O-O {[%clk 0:01:52]}  a6 {[%clk 0:02:26]} 10. Bxc6+ {[%clk 0:01:46]}  bxc6 {[%clk 0:02:27]} 11. Re1 {[%clk 0:01:46]}  Bd6 {[%clk 0:02:27]} 12. c4 {[%clk 0:01:23]}  d4 {[%clk 0:02:16]} 13. Nxd4 {[%clk 0:01:22]}  Bxb1 {[%clk 0:02:05]} 14. Nxc6 {[%clk 0:01:17]}  Qc7 {[%clk 0:01:59]} 15. Nxe5 {[%clk 0:00:57]}  Bxe5 {[%clk 0:01:54]} 16. Bxf6 {[%clk 0:00:57]}  gxf6 {[%clk 0:01:52]} 17. Rxb1 {[%clk 0:00:55]}  Qxc4 {[%clk 0:01:46]} 18. Rc1 {[%clk 0:00:48]}  Qxa2 {[%clk 0:01:45]} 19. Qh5+ {[%clk 0:00:46]}  Qf7 {[%clk 0:01:45]} 20. Qg4 {[%clk 0:00:41]}  Kf8 {[%clk 0:01:21]} 21. b4 {[%clk 0:00:15]}  Rg8 {[%clk 0:01:18]} 22. Qe4 {[%clk 0:00:13]}  Rd8 {[%clk 0:01:16]} 23. Rc6 {[%clk 0:00:11]}  Qd5 {[%clk 0:01:14]} 24. Qxd5 {[%clk 0:00:11]}  Rxd5 {[%clk 0:01:13]} 25. Rxa6 {[%clk 0:00:12]}  Kg7 {[%clk 0:01:10]} 26. g3 {[%clk 0:00:11]}  Rb8 {[%clk 0:01:09]} 27. Ra7+ {[%clk 0:00:11]}  Kg6 {[%clk 0:01:09]} 28. Re4 {[%clk 0:00:09]}  Rd4 {[%clk 0:01:00]} 29. Rxd4 {[%clk 0:00:04]}  Bxd4 {[%clk 0:01:01]} 30. Ra4 {[%clk 0:00:03]}  Bc3 {[%clk 0:01:01]} 0-1


[Site "https://www.chess.com"]

[Event "Titled Tuesday Blitz November 15 Early 2022"]
[White "Pichot, Alan"]
[Black "Buksa, Nataliya"]
[WhiteFideId "110973"]
[BlackFideId "14123622"]
[WhiteElo "2560"]
[BlackElo "2313"]
[Result "1-0"]
[Round "05"]
[TimeControl "180+1"]
[Date "2022.11.16"]
[WhiteClock "0:01:15"]
[BlackClock "0:00:02"]

1. Nf3 {[%clk 0:02:50]}  d5 {[%clk 0:02:58]} 2. b3 {[%clk 0:02:47]}  Nf6 {[%clk 0:02:56]} 3. Bb2 {[%clk 0:02:48]}  e6 {[%clk 0:02:57]} 4. e3 {[%clk 0:02:48]}  Be7 {[%clk 0:02:57]} 5. Be2 {[%clk 0:02:48]}  O-O {[%clk 0:02:58]} 6. O-O {[%clk 0:02:49]}  b6 {[%clk 0:02:58]} 7. c4 {[%clk 0:02:50]}  Bb7 {[%clk 0:02:59]} 8. Nc3 {[%clk 0:02:50]}  Nbd7 {[%clk 0:02:59]} 9. Rc1 {[%clk 0:02:49]}  a6 {[%clk 0:02:58]} 10. d4 {[%clk 0:02:48]}  Bd6 {[%clk 0:02:59]} 11. Bd3 {[%clk 0:02:44]}  Qe7 {[%clk 0:02:58]} 12. Qe2 {[%clk 0:02:44]}  e5 {[%clk 0:02:48]} 13. dxe5 {[%clk 0:02:33]}  Nxe5 {[%clk 0:02:48]} 14. cxd5 {[%clk 0:02:33]}  Nfg4 {[%clk 0:01:31]} 15. Nxe5 {[%clk 0:02:15]}  Qxe5 {[%clk 0:01:28]} 16. g3 {[%clk 0:02:13]}  Qh5 {[%clk 0:01:25]} 17. h4 {[%clk 0:02:13]}  f5 {[%clk 0:01:19]} 18. Qf3 {[%clk 0:02:06]}  Rf7 {[%clk 0:01:09]} 19. Ne2 {[%clk 0:02:05]}  Raf8 {[%clk 0:01:01]} 20. Nf4 {[%clk 0:02:05]}  Qh6 {[%clk 0:00:57]} 21. Qg2 {[%clk 0:01:56]}  g5 {[%clk 0:00:44]} 22. hxg5 {[%clk 0:01:56]}  Qxg5 {[%clk 0:00:36]} 23. Rc6 {[%clk 0:01:51]}  Re8 {[%clk 0:00:18]} 24. Bd4 {[%clk 0:01:45]}  Qh6 {[%clk 0:00:14]} 25. Qh3 {[%clk 0:01:40]}  Bxc6 {[%clk 0:00:11]} 26. Qxh6 {[%clk 0:01:39]}  Nxh6 {[%clk 0:00:11]} 27. dxc6 {[%clk 0:01:40]}  Rfe7 {[%clk 0:00:07]} 28. Nd5 {[%clk 0:01:37]}  Re6 {[%clk 0:00:03]} 29. Nf6+ {[%clk 0:01:37]}  Rxf6 {[%clk 0:00:04]} 30. Bxf6 {[%clk 0:01:38]}  Kf7 {[%clk 0:00:04]} 31. Bd4 {[%clk 0:01:37]}  Kg6 {[%clk 0:00:04]} 32. Kg2 {[%clk 0:01:37]}  Ng4 {[%clk 0:00:04]} 33. a4 {[%clk 0:01:20]}  a5 {[%clk 0:00:04]} 34. Rh1 {[%clk 0:01:20]}  h5 {[%clk 0:00:04]} 35. Re1 {[%clk 0:01:16]}  Nf6 {[%clk 0:00:04]} 36. f3 {[%clk 0:01:14]}  Nd5 {[%clk 0:00:03]} 37. e4 {[%clk 0:01:14]}  fxe4 {[%clk 0:00:02]} 38. Rxe4 {[%clk 0:01:15]} 1-0


[Site "https://www.chess.com"]

[Event "Titled Tuesday Blitz November 15 Early 2022"]
[White "Rakhmatullaev, Almas"]
[Black "Saravana, Krishnan P."]
[WhiteFideId "14205793"]
[BlackFideId "5018382"]
[WhiteElo "2221"]
[BlackElo "2155"]
[Result "1-0"]
[Round "05"]
[TimeControl "180+1"]
[Date "2022.11.16"]
[WhiteClock "0:00:08"]
[BlackClock "0:00:03"]

1. e4 {[%clk 0:03:00]}  c6 {[%clk 0:02:57]} 2. Nf3 {[%clk 0:03:00]}  d5 {[%clk 0:02:52]} 3. d3 {[%clk 0:03:01]}  Qc7 {[%clk 0:02:38]} 4. Nc3 {[%clk 0:02:58]}  Nf6 {[%clk 0:02:22]} 5. e5 {[%clk 0:02:57]}  Nfd7 {[%clk 0:02:11]} 6. d4 {[%clk 0:02:58]}  e6 {[%clk 0:02:10]} 7. Ng5 {[%clk 0:02:58]}  h6 {[%clk 0:02:08]} 8. Qh5 {[%clk 0:02:56]}  Nxe5 {[%clk 0:02:02]} 9. dxe5 {[%clk 0:01:53]}  Qxe5+ {[%clk 0:02:03]} 10. Nce4 {[%clk 0:01:53]}  g6 {[%clk 0:01:56]} 11. f4 {[%clk 0:01:39]}  Qxe4+ {[%clk 0:01:41]} 12. Nxe4 {[%clk 0:01:37]}  gxh5 {[%clk 0:01:41]} 13. Nf6+ {[%clk 0:01:37]}  Kd8 {[%clk 0:01:25]} 14. Nxh5 {[%clk 0:01:38]}  c5 {[%clk 0:01:25]} 15. c4 {[%clk 0:01:35]}  d4 {[%clk 0:01:23]} 16. f5 {[%clk 0:01:32]}  exf5 {[%clk 0:01:22]} 17. Bf4 {[%clk 0:01:30]}  Nc6 {[%clk 0:01:21]} 18. O-O-O {[%clk 0:01:30]}  Be6 {[%clk 0:01:21]} 19. Bd3 {[%clk 0:01:25]}  Be7 {[%clk 0:01:19]} 20. Rhe1 {[%clk 0:01:21]}  Nb4 {[%clk 0:01:16]} 21. Bb1 {[%clk 0:01:11]}  Bxc4 {[%clk 0:01:08]} 22. b3 {[%clk 0:01:06]}  Be6 {[%clk 0:01:07]} 23. Ng7 {[%clk 0:01:04]}  Kd7 {[%clk 0:01:06]} 24. Nxf5 {[%clk 0:00:59]}  Bg5 {[%clk 0:01:02]} 25. g3 {[%clk 0:00:48]}  Bxf4+ {[%clk 0:01:01]} 26. gxf4 {[%clk 0:00:49]}  Nd5 {[%clk 0:00:51]} 27. Re5 {[%clk 0:00:31]}  Rac8 {[%clk 0:00:43]} 28. Ng3 {[%clk 0:00:17]}  Nxf4 {[%clk 0:00:42]} 29. Ne4 {[%clk 0:00:17]}  Nd5 {[%clk 0:00:37]} 30. Bd3 {[%clk 0:00:14]}  Rhd8 {[%clk 0:00:31]} 31. Rf1 {[%clk 0:00:12]}  Kc7 {[%clk 0:00:30]} 32. Kd2 {[%clk 0:00:10]}  Kb8 {[%clk 0:00:30]} 33. Rh5 {[%clk 0:00:09]}  Nb4 {[%clk 0:00:27]} 34. Bb1 {[%clk 0:00:08]}  Rg8 {[%clk 0:00:26]} 35. a3 {[%clk 0:00:06]}  Rg2+ {[%clk 0:00:24]} 36. Rf2 {[%clk 0:00:06]}  Rxf2+ {[%clk 0:00:24]} 37. Nxf2 {[%clk 0:00:07]}  Nd5 {[%clk 0:00:24]} 38. Rxh6 {[%clk 0:00:07]}  b5 {[%clk 0:00:23]} 39. Ne4 {[%clk 0:00:04]}  c4 {[%clk 0:00:22]} 40. Nd6 {[%clk 0:00:05]}  Rc5 {[%clk 0:00:18]} 41. Rh8+ {[%clk 0:00:04]}  Kc7 {[%clk 0:00:18]} 42. Ne8+ {[%clk 0:00:05]}  Kb6 {[%clk 0:00:18]} 43. bxc4 {[%clk 0:00:03]}  bxc4 {[%clk 0:00:17]} 44. Be4 {[%clk 0:00:04]}  c3+ {[%clk 0:00:17]} 45. Kc1 {[%clk 0:00:05]}  Ne3 {[%clk 0:00:16]} 46. Nd6 {[%clk 0:00:05]}  Kc7 {[%clk 0:00:15]} 47. Ne8+ {[%clk 0:00:05]}  Kd7 {[%clk 0:00:15]} 48. Nf6+ {[%clk 0:00:05]}  Ke7 {[%clk 0:00:16]} 49. Ng8+ {[%clk 0:00:06]}  Kd6 {[%clk 0:00:15]} 50. Nh6 {[%clk 0:00:04]}  Re5 {[%clk 0:00:14]} 51. Bd3 {[%clk 0:00:04]}  Bc4 {[%clk 0:00:14]} 52. Bxc4 {[%clk 0:00:04]}  Nxc4 {[%clk 0:00:14]} 53. Nxf7+ {[%clk 0:00:04]}  Kc5 {[%clk 0:00:13]} 54. Nxe5 {[%clk 0:00:05]}  Nxe5 {[%clk 0:00:13]} 55. Rc8+ {[%clk 0:00:04]}  Kd5 {[%clk 0:00:13]} 56. h4 {[%clk 0:00:05]}  Ke4 {[%clk 0:00:12]} 57. h5 {[%clk 0:00:05]}  Ng4 {[%clk 0:00:10]} 58. Rc7 {[%clk 0:00:03]}  a5 {[%clk 0:00:09]} 59. Rg7 {[%clk 0:00:04]}  Ne5 {[%clk 0:00:08]} 60. h6 {[%clk 0:00:04]}  d3 {[%clk 0:00:08]} 61. h7 {[%clk 0:00:04]}  d2+ {[%clk 0:00:09]} 62. Kc2 {[%clk 0:00:05]}  Ke3 {[%clk 0:00:08]} 63. Rg2 {[%clk 0:00:03]}  Nf3 {[%clk 0:00:08]} 64. h8=Q {[%clk 0:00:03]}  Ne1+ {[%clk 0:00:07]} 65. Kxc3 {[%clk 0:00:03]}  d1=Q {[%clk 0:00:05]} 66. Qh6+ {[%clk 0:00:04]}  Kf3 {[%clk 0:00:05]} 67. Qh5+ {[%clk 0:00:04]}  Kxg2 {[%clk 0:00:04]} 68. Qxd1 {[%clk 0:00:05]}  Nf3 {[%clk 0:00:04]} 69. Qe2+ {[%clk 0:00:06]}  Kg3 {[%clk 0:00:04]} 70. Qb5 {[%clk 0:00:07]}  Ne1 {[%clk 0:00:03]} 71. Qxa5 {[%clk 0:00:08]}  Nf3 {[%clk 0:00:03]} 72. Qc5 {[%clk 0:00:08]} 1-0


[Site "https://www.chess.com"]

[Event "Titled Tuesday Blitz November 15 Early 2022"]
[White "Remizov, Yaroslav"]
[Black "Adel, Sara"]
[WhiteFideId "34134015"]
[BlackFideId "10616764"]
[WhiteElo "2414"]
[BlackElo "1994"]
[Result "0-1"]
[Round "05"]
[TimeControl "180+1"]
[Date "2022.11.16"]
[WhiteClock "0:00:18"]
[BlackClock "0:00:54"]

1. d4 {[%clk 0:03:00]}  Nf6 {[%clk 0:02:56]} 2. Nf3 {[%clk 0:03:00]}  g6 {[%clk 0:02:57]} 3. c4 {[%clk 0:02:56]}  Bg7 {[%clk 0:02:57]} 4. Nc3 {[%clk 0:02:56]}  d6 {[%clk 0:02:57]} 5. e4 {[%clk 0:02:55]}  Nbd7 {[%clk 0:02:57]} 6. Be2 {[%clk 0:02:56]}  e5 {[%clk 0:02:58]} 7. Be3 {[%clk 0:02:55]}  Ng4 {[%clk 0:02:57]} 8. Bg5 {[%clk 0:02:54]}  f6 {[%clk 0:02:57]} 9. Bh4 {[%clk 0:02:53]}  g5 {[%clk 0:02:58]} 10. Bg3 {[%clk 0:02:50]}  h5 {[%clk 0:02:58]} 11. dxe5 {[%clk 0:02:23]}  Ngxe5 {[%clk 0:02:35]} 12. Bxe5 {[%clk 0:02:12]}  fxe5 {[%clk 0:02:31]} 13. Qd2 {[%clk 0:02:05]}  Bh6 {[%clk 0:02:30]} 14. Qc2 {[%clk 0:01:53]}  g4 {[%clk 0:02:30]} 15. Nd2 {[%clk 0:01:53]}  O-O {[%clk 0:02:28]} 16. O-O {[%clk 0:01:49]}  Qg5 {[%clk 0:02:17]} 17. Rad1 {[%clk 0:01:42]}  h4 {[%clk 0:02:16]} 18. Nd5 {[%clk 0:01:35]}  Nc5 {[%clk 0:01:59]} 19. Nxc7 {[%clk 0:01:29]}  Rb8 {[%clk 0:01:39]} 20. b4 {[%clk 0:01:28]}  Ne6 {[%clk 0:01:37]} 21. Nxe6 {[%clk 0:01:20]}  Bxe6 {[%clk 0:01:37]} 22. Nb3 {[%clk 0:01:19]}  g3 {[%clk 0:01:36]} 23. fxg3 {[%clk 0:01:08]}  hxg3 {[%clk 0:01:28]} 24. Rxd6 {[%clk 0:00:30]}  Qh4 {[%clk 0:00:56]} 25. hxg3 {[%clk 0:00:20]}  Be3+ {[%clk 0:00:53]} 26. Rf2 {[%clk 0:00:20]}  Bxf2+ {[%clk 0:00:53]} 27. Kf1 {[%clk 0:00:18]}  Qh1# {[%clk 0:00:54]} 0-1


[Site "https://www.chess.com"]

[Event "Titled Tuesday Blitz November 15 Early 2022"]
[White "Rose, Felix"]
[Black "Winkels, Marcel"]
[WhiteFideId "5105722"]
[BlackFideId "1003887"]
[WhiteElo "2039"]
[BlackElo "1900"]
[Result "1-0"]
[Round "05"]
[TimeControl "180+1"]
[Date "2022.11.16"]
[WhiteClock "0:00:32"]
[BlackClock "0:00:36"]

1. d4 {[%clk 0:03:00]}  Nf6 {[%clk 0:02:58]} 2. Nc3 {[%clk 0:02:58]}  d5 {[%clk 0:02:56]} 3. Bf4 {[%clk 0:02:58]}  a6 {[%clk 0:02:56]} 4. Qd2 {[%clk 0:02:52]}  g6 {[%clk 0:02:56]} 5. f3 {[%clk 0:02:53]}  Bg7 {[%clk 0:02:54]} 6. Bh6 {[%clk 0:02:52]}  O-O {[%clk 0:02:53]} 7. h4 {[%clk 0:02:52]}  c5 {[%clk 0:02:31]} 8. Bxg7 {[%clk 0:02:50]}  Kxg7 {[%clk 0:02:28]} 9. dxc5 {[%clk 0:02:47]}  Nc6 {[%clk 0:02:26]} 10. O-O-O {[%clk 0:02:44]}  d4 {[%clk 0:02:25]} 11. Ne4 {[%clk 0:02:40]}  Qd5 {[%clk 0:02:20]} 12. Nxf6 {[%clk 0:02:09]}  Qxa2 {[%clk 0:02:18]} 13. Nh5+ {[%clk 0:02:01]}  gxh5 {[%clk 0:02:13]} 14. Qg5+ {[%clk 0:02:01]}  Kh8 {[%clk 0:02:11]} 15. e4 {[%clk 0:01:55]}  Qa1+ {[%clk 0:02:04]} 16. Kd2 {[%clk 0:01:55]}  Qxb2 {[%clk 0:02:05]} 17. Ne2 {[%clk 0:01:55]}  e5 {[%clk 0:01:55]} 18. Qf6+ {[%clk 0:01:48]}  Kg8 {[%clk 0:01:53]} 19. Qg5+ {[%clk 0:01:23]}  Kh8 {[%clk 0:01:51]} 20. Qf6+ {[%clk 0:01:10]}  Kg8 {[%clk 0:01:50]} 21. g4 {[%clk 0:01:10]}  d3 {[%clk 0:01:28]} 22. Qg5+ {[%clk 0:00:58]}  Kh8 {[%clk 0:01:27]} 23. Qf6+ {[%clk 0:00:57]}  Kg8 {[%clk 0:01:26]} 24. gxh5 {[%clk 0:00:52]}  Qxc2+ {[%clk 0:01:24]} 25. Ke1 {[%clk 0:00:48]}  Rd8 {[%clk 0:01:05]} 26. Rg1+ {[%clk 0:00:46]}  Kf8 {[%clk 0:01:05]} 27. Rg7 {[%clk 0:00:39]}  Qb3 {[%clk 0:00:50]} 28. Rxh7 {[%clk 0:00:34]}  Ke8 {[%clk 0:00:37]} 29. Rh8+ {[%clk 0:00:32]}  Kd7 {[%clk 0:00:36]} 30. Qd6# {[%clk 0:00:32]} 1-0


[Site "https://www.chess.com"]

[Event "Titled Tuesday Blitz November 15 Early 2022"]
[White "Rosh Jain"]
[Black "Mihailidis, Anastasios"]
[WhiteFideId "25789465"]
[BlackFideId "4205588"]
[WhiteElo "2233"]
[BlackElo "2312"]
[Result "0-1"]
[Round "05"]
[TimeControl "180+1"]
[Date "2022.11.16"]
[WhiteClock "0:00:01"]
[BlackClock "0:00:13"]

1. e4 {[%clk 0:02:59]}  c5 {[%clk 0:02:53]} 2. Nf3 {[%clk 0:02:58]}  d6 {[%clk 0:02:52]} 3. d4 {[%clk 0:02:56]}  cxd4 {[%clk 0:02:52]} 4. Nxd4 {[%clk 0:02:57]}  Nf6 {[%clk 0:02:52]} 5. Nc3 {[%clk 0:02:57]}  g6 {[%clk 0:02:53]} 6. Be3 {[%clk 0:02:55]}  Bg7 {[%clk 0:02:52]} 7. f3 {[%clk 0:02:55]}  O-O {[%clk 0:02:53]} 8. Qd2 {[%clk 0:02:56]}  Nc6 {[%clk 0:02:54]} 9. O-O-O {[%clk 0:02:56]}  d5 {[%clk 0:02:54]} 10. Qe1 {[%clk 0:02:56]}  e5 {[%clk 0:02:48]} 11. Nxc6 {[%clk 0:02:45]}  bxc6 {[%clk 0:02:48]} 12. exd5 {[%clk 0:02:26]}  cxd5 {[%clk 0:02:48]} 13. Bc4 {[%clk 0:02:25]}  Be6 {[%clk 0:02:41]} 14. Bc5 {[%clk 0:01:57]}  Re8 {[%clk 0:02:37]} 15. Bb5 {[%clk 0:01:57]}  Bd7 {[%clk 0:02:34]} 16. Nxd5 {[%clk 0:01:43]}  Nxd5 {[%clk 0:02:30]} 17. Rxd5 {[%clk 0:01:42]}  Bh6+ {[%clk 0:02:05]} 18. Kb1 {[%clk 0:01:41]}  Qc7 {[%clk 0:01:39]} 19. Bxd7 {[%clk 0:01:36]}  Red8 {[%clk 0:01:38]} 20. Qe4 {[%clk 0:01:14]}  f5 {[%clk 0:01:29]} 21. Qc4 {[%clk 0:01:12]}  Kh8 {[%clk 0:01:24]} 22. Be6 {[%clk 0:00:54]}  Rxd5 {[%clk 0:01:13]} 23. Qxd5 {[%clk 0:00:53]}  Rd8 {[%clk 0:01:03]} 24. Qc4 {[%clk 0:00:53]}  Bf8 {[%clk 0:00:59]} 25. Bxf8 {[%clk 0:00:40]}  Qxc4 {[%clk 0:00:56]} 26. Bxc4 {[%clk 0:00:40]}  Rxf8 {[%clk 0:00:57]} 27. Rd1 {[%clk 0:00:40]}  e4 {[%clk 0:00:56]} 28. Re1 {[%clk 0:00:39]}  exf3 {[%clk 0:00:48]} 29. gxf3 {[%clk 0:00:40]}  Rd8 {[%clk 0:00:46]} 30. Bb5 {[%clk 0:00:39]}  Rd2 {[%clk 0:00:45]} 31. Be2 {[%clk 0:00:38]}  Rd4 {[%clk 0:00:44]} 32. c3 {[%clk 0:00:34]}  Rh4 {[%clk 0:00:43]} 33. Rh1 {[%clk 0:00:33]}  g5 {[%clk 0:00:39]} 34. Kc2 {[%clk 0:00:32]}  Kg7 {[%clk 0:00:38]} 35. Kd3 {[%clk 0:00:28]}  Kf6 {[%clk 0:00:39]} 36. Ke3 {[%clk 0:00:27]}  Ke5 {[%clk 0:00:39]} 37. Bd3 {[%clk 0:00:25]}  Rh3 {[%clk 0:00:38]} 38. Kf2 {[%clk 0:00:23]}  g4 {[%clk 0:00:35]} 39. Be2 {[%clk 0:00:22]}  Kf4 {[%clk 0:00:34]} 40. fxg4 {[%clk 0:00:19]}  fxg4 {[%clk 0:00:35]} 41. Rg1 {[%clk 0:00:17]}  Rxh2+ {[%clk 0:00:35]} 42. Rg2 {[%clk 0:00:17]}  g3+ {[%clk 0:00:33]} 43. Kg1 {[%clk 0:00:14]}  Rh6 {[%clk 0:00:29]} 44. Kf1 {[%clk 0:00:11]}  Rd6 {[%clk 0:00:27]} 45. Ke1 {[%clk 0:00:11]}  Rd5 {[%clk 0:00:23]} 46. c4 {[%clk 0:00:10]}  Re5 {[%clk 0:00:23]} 47. Kd2 {[%clk 0:00:09]}  h5 {[%clk 0:00:22]} 48. b4 {[%clk 0:00:07]}  h4 {[%clk 0:00:22]} 49. Rg1 {[%clk 0:00:05]}  h3 {[%clk 0:00:21]} 50. Rf1+ {[%clk 0:00:06]}  Kg5 {[%clk 0:00:21]} 51. Rh1 {[%clk 0:00:02]}  g2 {[%clk 0:00:18]} 52. Rg1 {[%clk 0:00:03]}  Kf4 {[%clk 0:00:16]} 53. Bf1 {[%clk 0:00:02]}  Kg3 {[%clk 0:00:16]} 54. Bxg2 {[%clk 0:00:02]}  hxg2 {[%clk 0:00:17]} 55. Rxg2+ {[%clk 0:00:02]}  Kxg2 {[%clk 0:00:17]} 56. Kc3 {[%clk 0:00:02]}  Kf3 {[%clk 0:00:18]} 57. Kd4 {[%clk 0:00:03]}  Re4+ {[%clk 0:00:17]} 58. Kd5 {[%clk 0:00:02]}  Re2 {[%clk 0:00:13]} 59. a4 {[%clk 0:00:02]}  Rd2+ {[%clk 0:00:13]} 60. Kc5 {[%clk 0:00:02]}  Ke4 {[%clk 0:00:13]} 61. Kc6 {[%clk 0:00:01]}  Ra2 {[%clk 0:00:13]} 62. a5 {[%clk 0:00:01]}  Ra4 {[%clk 0:00:13]} 63. Kb5 {[%clk 0:00:01]}  Ra1 {[%clk 0:00:13]} 64. Ka6 {[%clk 0:00:01]}  Kd4 {[%clk 0:00:13]} 65. c5 {[%clk 0:00:01]}  Kd5 {[%clk 0:00:13]} 0-1


[Site "https://www.chess.com"]

[Event "Titled Tuesday Blitz November 15 Early 2022"]
[White "Rostomyan, Mikayel"]
[Black "Lauridsen, Jesper Morch"]
[WhiteFideId "13313754"]
[BlackFideId "1401890"]
[WhiteElo "2009"]
[BlackElo "2227"]
[Result "1-0"]
[Round "05"]
[TimeControl "180+1"]
[Date "2022.11.16"]
[WhiteClock "0:00:48"]
[BlackClock "0:00:08"]

1. e4 {[%clk 0:02:59]}  e6 {[%clk 0:02:58]} 2. d4 {[%clk 0:02:56]}  d5 {[%clk 0:02:57]} 3. Bd3 {[%clk 0:02:56]}  c5 {[%clk 0:02:56]} 4. exd5 {[%clk 0:02:49]}  cxd4 {[%clk 0:02:56]} 5. dxe6 {[%clk 0:02:46]}  Bxe6 {[%clk 0:02:55]} 6. Nf3 {[%clk 0:02:45]}  Nc6 {[%clk 0:02:55]} 7. O-O {[%clk 0:02:45]}  Nf6 {[%clk 0:02:54]} 8. Bg5 {[%clk 0:02:44]}  Be7 {[%clk 0:02:52]} 9. Nbd2 {[%clk 0:02:44]}  O-O {[%clk 0:02:51]} 10. Nb3 {[%clk 0:02:44]}  Qb6 {[%clk 0:02:45]} 11. Nbxd4 {[%clk 0:02:33]}  Nxd4 {[%clk 0:02:38]} 12. Nxd4 {[%clk 0:02:34]}  Qxb2 {[%clk 0:02:26]} 13. Nxe6 {[%clk 0:02:32]}  fxe6 {[%clk 0:02:26]} 14. Qe2 {[%clk 0:02:26]}  Qb6 {[%clk 0:02:10]} 15. Rab1 {[%clk 0:02:00]}  Qc6 {[%clk 0:01:57]} 16. Bc4 {[%clk 0:01:54]}  Kh8 {[%clk 0:01:43]} 17. Qxe6 {[%clk 0:01:50]}  Qxe6 {[%clk 0:01:41]} 18. Bxe6 {[%clk 0:01:50]}  b6 {[%clk 0:01:39]} 19. Rfd1 {[%clk 0:01:47]}  Rad8 {[%clk 0:01:38]} 20. Bb3 {[%clk 0:01:44]}  h6 {[%clk 0:01:26]} 21. Be3 {[%clk 0:01:42]}  Ng4 {[%clk 0:01:22]} 22. Bd4 {[%clk 0:01:38]}  Bd6 {[%clk 0:01:14]} 23. g3 {[%clk 0:01:34]}  Ne5 {[%clk 0:01:01]} 24. Kg2 {[%clk 0:01:31]}  Nf3 {[%clk 0:00:55]} 25. Be3 {[%clk 0:01:27]}  Ne5 {[%clk 0:00:45]} 26. h3 {[%clk 0:01:25]}  Bc5 {[%clk 0:00:35]} 27. Bxc5 {[%clk 0:01:17]}  bxc5 {[%clk 0:00:33]} 28. Bd5 {[%clk 0:01:17]}  Rd6 {[%clk 0:00:27]} 29. c4 {[%clk 0:01:12]}  Nc6 {[%clk 0:00:20]} 30. Bxc6 {[%clk 0:00:59]}  Rxc6 {[%clk 0:00:20]} 31. Rd7 {[%clk 0:01:00]}  Rb6 {[%clk 0:00:19]} 32. Rxb6 {[%clk 0:00:55]}  axb6 {[%clk 0:00:19]} 33. Rb7 {[%clk 0:00:55]}  Rf6 {[%clk 0:00:19]} 34. a4 {[%clk 0:00:54]}  h5 {[%clk 0:00:19]} 35. Rc7 {[%clk 0:00:49]}  Rd6 {[%clk 0:00:18]} 36. a5 {[%clk 0:00:49]}  bxa5 {[%clk 0:00:18]} 37. Rxc5 {[%clk 0:00:49]}  Rd4 {[%clk 0:00:16]} 38. Rxh5+ {[%clk 0:00:48]}  Kg8 {[%clk 0:00:16]} 39. Rxa5 {[%clk 0:00:49]}  Rxc4 {[%clk 0:00:15]} 40. g4 {[%clk 0:00:50]}  Rc3 {[%clk 0:00:15]} 41. f3 {[%clk 0:00:49]}  Kh8 {[%clk 0:00:16]} 42. Kg3 {[%clk 0:00:50]}  Kh7 {[%clk 0:00:16]} 43. h4 {[%clk 0:00:50]}  Rb3 {[%clk 0:00:16]} 44. Ra6 {[%clk 0:00:50]}  Rc3 {[%clk 0:00:15]} 45. h5 {[%clk 0:00:50]}  Rc4 {[%clk 0:00:15]} 46. g5 {[%clk 0:00:49]}  Rc8 {[%clk 0:00:14]} 47. f4 {[%clk 0:00:50]}  Rc3+ {[%clk 0:00:14]} 48. Kg4 {[%clk 0:00:50]}  Rd3 {[%clk 0:00:14]} 49. Ra8 {[%clk 0:00:49]}  g6 {[%clk 0:00:08]} 50. Ra7+ {[%clk 0:00:48]}  Kh8 {[%clk 0:00:08]} 51. hxg6 {[%clk 0:00:48]}  Kg8 {[%clk 0:00:08]} 52. f5 {[%clk 0:00:48]}  Rd4+ {[%clk 0:00:09]} 53. Kh5 {[%clk 0:00:48]}  Rd1 {[%clk 0:00:08]} 54. Ra8+ {[%clk 0:00:47]}  Kg7 {[%clk 0:00:08]} 55. f6# {[%clk 0:00:48]} 1-0


[Site "https://www.chess.com"]

[Event "Titled Tuesday Blitz November 15 Early 2022"]
[White "Sadubayev, Airat"]
[Black "Chernomordik, Pavel"]
[WhiteFideId "13713264"]
[BlackFideId "2804530"]
[WhiteElo "2160"]
[BlackElo "2192"]
[Result "1-0"]
[Round "05"]
[TimeControl "180+1"]
[Date "2022.11.16"]
[WhiteClock "0:00:20"]
[BlackClock "0:00:17"]

1. d4 {[%clk 0:02:55]}  g6 {[%clk 0:02:56]} 2. c4 {[%clk 0:02:54]}  Bg7 {[%clk 0:02:55]} 3. Nc3 {[%clk 0:02:54]}  d6 {[%clk 0:02:54]} 4. e4 {[%clk 0:02:55]}  c6 {[%clk 0:02:54]} 5. Be3 {[%clk 0:02:54]}  a6 {[%clk 0:02:53]} 6. a4 {[%clk 0:02:51]}  a5 {[%clk 0:02:53]} 7. f3 {[%clk 0:02:49]}  Na6 {[%clk 0:02:52]} 8. Bd3 {[%clk 0:02:47]}  Nb4 {[%clk 0:02:50]} 9. Bb1 {[%clk 0:02:47]}  Nf6 {[%clk 0:02:50]} 10. Nge2 {[%clk 0:02:47]}  O-O {[%clk 0:02:48]} 11. O-O {[%clk 0:02:46]}  Nd7 {[%clk 0:02:48]} 12. Qd2 {[%clk 0:02:43]}  e5 {[%clk 0:02:43]} 13. Rd1 {[%clk 0:02:38]}  Qe7 {[%clk 0:02:41]} 14. Bc2 {[%clk 0:02:31]}  Nxc2 {[%clk 0:02:26]} 15. Qxc2 {[%clk 0:02:31]}  exd4 {[%clk 0:02:22]} 16. Nxd4 {[%clk 0:02:28]}  Ne5 {[%clk 0:02:20]} 17. b3 {[%clk 0:02:27]}  Be6 {[%clk 0:02:13]} 18. Qd2 {[%clk 0:02:11]}  Rfd8 {[%clk 0:02:02]} 19. Nce2 {[%clk 0:02:01]}  Bd7 {[%clk 0:01:51]} 20. Nf4 {[%clk 0:01:57]}  Be8 {[%clk 0:01:50]} 21. Rac1 {[%clk 0:01:55]}  Rac8 {[%clk 0:01:47]} 22. Qxa5 {[%clk 0:01:52]}  f5 {[%clk 0:01:40]} 23. Nde6 {[%clk 0:01:43]}  Rd7 {[%clk 0:01:37]} 24. Nxg7 {[%clk 0:01:40]}  Kxg7 {[%clk 0:01:36]} 25. exf5 {[%clk 0:01:30]}  Nxf3+ {[%clk 0:01:32]} 26. Kf2 {[%clk 0:01:30]}  Ne5 {[%clk 0:01:32]} 27. Qc3 {[%clk 0:01:20]}  gxf5 {[%clk 0:01:29]} 28. Kg1 {[%clk 0:01:19]}  Kg8 {[%clk 0:01:27]} 29. Bd4 {[%clk 0:01:19]}  Bf7 {[%clk 0:01:18]} 30. Re1 {[%clk 0:01:14]}  Re8 {[%clk 0:01:16]} 31. Nd3 {[%clk 0:01:12]}  Qf6 {[%clk 0:00:56]} 32. Nxe5 {[%clk 0:01:08]}  dxe5 {[%clk 0:00:56]} 33. Bxe5 {[%clk 0:01:05]}  Qg5 {[%clk 0:00:50]} 34. Qg3 {[%clk 0:00:37]}  Qxg3 {[%clk 0:00:49]} 35. Bxg3 {[%clk 0:00:37]}  Rd3 {[%clk 0:00:46]} 36. Rxe8+ {[%clk 0:00:32]}  Bxe8 {[%clk 0:00:45]} 37. Rb1 {[%clk 0:00:32]}  Bh5 {[%clk 0:00:38]} 38. a5 {[%clk 0:00:30]}  Bd1 {[%clk 0:00:37]} 39. b4 {[%clk 0:00:29]}  Bb3 {[%clk 0:00:34]} 40. b5 {[%clk 0:00:26]}  Bxc4 {[%clk 0:00:29]} 41. a6 {[%clk 0:00:24]}  bxa6 {[%clk 0:00:17]} 42. b6 {[%clk 0:00:20]} 1-0


[Site "https://www.chess.com"]